fUSD/lending_fUSD_20240828
["ID","MTS","AMOUNT","RATE_DAILY","PERIOD"]
[336503897,1724885060061,-220.08,0.00039178,120]
[336503898,1724885060097,-1071.47,0.00039178,120]
[336503899,1724885060132,-500.0,0.00039178,120]
[336503900,1724885060169,-923.89,0.00039178,120]
[336503901,1724885060205,-500.0,0.00039178,120]
[336503902,1724885060240,-1179.08,0.00039178,120]
[336503903,1724885060275,-500.0,0.00039178,120]
[336503904,1724885060309,-500.0,0.00039178,120]
[336503905,1724885060345,-500.0,0.00039178,120]
[336503906,1724885060379,-4555.43,0.00039178,120]
[336503907,1724885060413,-500.0,0.00039178,120]
[336503908,1724885060446,-500.0,0.00039178,120]
[336503909,1724885060481,-1145.76,0.00039178,120]
[336503910,1724885060515,-500.0,0.00039178,120]
[336503911,1724885060550,-500.0,0.00039178,120]
[336503912,1724885060586,-2556.34,0.00039178,120]
[336503913,1724885060621,-2223.38,0.00039178,120]
[336503914,1724885060656,-2930.57,0.00039178,120]
[336503915,1724885060692,-858.15,0.00039178,120]
[336503916,1724885060728,-1826.38,0.00039178,120]
[336503917,1724885060764,-2943.14,0.00039178,120]
[336503918,1724885060801,-1455.66,0.00039178,120]
[336503919,1724885060836,-500.0,0.00039178,120]
[336503920,1724885061122,-3586.81,0.00039178,120]
[336503921,1724885061162,-642.92,0.00039178,120]
[336503922,1724885061199,-500.0,0.00039178,120]
[336503923,1724885061234,-500.0,0.00039178,120]
[336503924,1724885061269,-1610.74,0.00039178,120]
[336503925,1724885061303,-1992.77,0.00039178,120]
[336503926,1724885061342,-548.10666724,0.00039178,120]
[336503927,1724885061381,-2804.78,0.00039178,120]
[336503928,1724885061416,-500.0,0.00039178,120]
[336503929,1724885061452,-500.0,0.00039178,120]
[336503930,1724885061488,-1536.25,0.00039178,120]
[336503931,1724885061523,-2440.8,0.00039178,120]
[336503932,1724885061559,-2916.84,0.00039178,120]
[336503933,1724885061599,-809.06,0.00039178,120]
[336503934,1724885061637,-500.0,0.00039178,120]
[336503935,1724885061676,-600.97,0.00039178,120]
[336503936,1724885061716,-5139.77,0.00039178,120]
[336503937,1724885061753,-1441.92,0.00039178,120]
[336503938,1724885061790,-1171.15,0.00039178,120]
[336503939,1724885061826,-500.0,0.00039178,120]
[336503940,1724885061867,-1274.5,0.00039178,120]
[336503941,1724885061903,-625.92,0.00039178,120]
[336503942,1724885061940,-449.18427768,0.00039178,120]
[336503943,1724885061977,-2864.69,0.00039178,120]
[336503944,1724885062013,-2068.13,0.00039178,120]
[336503945,1724885062050,-1127.38,0.00039178,120]
[336503946,1724885062086,-1355.07,0.00039178,120]
[336503947,1724885062128,-500.0,0.00039178,120]
[336503948,1724885062161,-3652.27,0.00039178,120]
[336503949,1724885062195,-1321.13,0.00039178,120]
[336503950,1724885062229,-1147.74,0.00039178,120]
[336503951,1724885062262,-864.13,0.00039178,120]
[336503952,1724885062295,-3723.53,0.00039178,120]
[336503953,1724885062328,-2609.87,0.00039178,120]
[336503954,1724885062362,-500.0,0.00039178,120]
[336503955,1724885062395,-2583.82,0.00039178,120]
[336503956,1724885062429,-500.0,0.00039178,120]
[336503957,1724885062462,-603.42,0.00039178,120]
[336503958,1724885062495,-500.0,0.00039178,120]
[336503959,1724885062528,-1028.3,0.00039178,120]
[336503960,1724885062562,-724.47,0.00039178,120]
[336503961,1724885062596,-500.0,0.00039178,120]
[336503962,1724885062629,-500.0,0.00039178,120]
[336503963,1724885062663,-500.0,0.00039178,120]
[336503964,1724885062699,-3115.98,0.00039178,120]
[336503965,1724885062734,-856.67,0.00039178,120]
[336503966,1724885062770,-183.30018184,0.00039178,120]
[336503967,1724885062807,-1178.33,0.00039178,120]
[336503968,1724885062845,-500.0,0.00039178,120]
[336503969,1724885062884,-1721.24,0.00039178,120]
[336503970,1724885062921,-814.76,0.00039178,120]
[336503971,1724885062958,-500.0,0.00039178,120]
[336503972,1724885062993,-558.43747534,0.00039178,120]
[336503973,1724885063028,-2181.83,0.00039178,120]
[336503974,1724885063063,-775.96,0.00039178,120]
[336503975,1724885063105,-1912.04,0.00039178,120]
[336503976,1724885063144,-1368.92,0.00039178,120]
[336503977,1724885063182,-500.0,0.00039178,120]
[336503978,1724885063217,-1614.96,0.00039178,120]
[336503979,1724885063253,-4437.27,0.00039178,120]
[336503980,1724885063291,-500.0,0.00039178,120]
[336503981,1724885063326,-1843.18,0.00039178,120]
[336503982,1724885063364,-1589.17,0.00039178,120]
[336503983,1724885063399,-877.71,0.00039178,120]
[336503984,1724885063433,-771.68,0.00039178,120]
[336503985,1724885063466,-645.05,0.00039178,120]
[336503986,1724885063500,-3827.27,0.00039178,120]
[336503987,1724885063535,-1190.61,0.00039178,120]
[336503988,1724885063571,-940.61,0.00039178,120]
[336503989,1724885063606,-500.0,0.00039178,90]
[336503990,1724885063643,-500.0,0.00039178,120]
[336503991,1724885063679,-500.0,0.00039178,120]
[336503992,1724885063715,-4155.57,0.00039178,120]
[336503993,1724885063844,-918.32,0.00039178,120]
[336503994,1724885063884,-651.48,0.00039178,120]
[336503995,1724885063927,-500.0,0.00039178,120]
[336503996,1724885063966,-3256.33,0.00039178,120]
[336503997,1724885064008,-2052.4,0.00039178,120]
[336503998,1724885064048,-2658.12833639,0.00039178,120]
[336504000,1724885114604,-328.17,0.00026414,120]
[336504001,1724885114661,-328.17,0.00028815,120]
[336504002,1724885114746,-150.0,0.00037514,120]
[336504003,1724885114792,-150.0,0.00037688,120]
[336504004,1724885114839,-2165.19,0.00038356,120]
[336504005,1724885114885,-500.0,0.00038356,120]
[336504006,1724885114930,-500.0,0.00038356,120]
[336504007,1724885114979,-500.0,0.00038356,120]
[336504008,1724885115025,-154.68539,0.00038356,120]
[336504009,1724885115069,-500.0,0.00038356,120]
[336504010,1724885115116,-500.0,0.00038356,120]
[336504011,1724885115160,-582.22,0.00038356,120]
[336504012,1724885115205,-956.93,0.00038356,120]
[336504013,1724885115249,-500.0,0.00038356,120]
[336504014,1724885115292,-1014.77,0.00038356,120]
[336504015,1724885115336,-500.0,0.00038356,120]
[336504016,1724885115379,-500.0,0.00038356,120]
[336504017,1724885115424,-500.0,0.00038356,120]
[336504018,1724885115467,-1088.43,0.00038356,120]
[336504019,1724885115511,-1629.12,0.00038356,120]
[336504020,1724885115555,-625.56,0.00038356,120]
[336504021,1724885115598,-500.0,0.00038356,120]
[336504022,1724885115642,-511.89,0.00038356,120]
[336504023,1724885115774,-500.0,0.00038356,120]
[336504024,1724885115819,-500.0,0.00038356,120]
[336504025,1724885115864,-4067.41,0.00038356,120]
[336504026,1724885115909,-500.0,0.00038356,120]
[336504027,1724885115955,-1468.53,0.00038356,120]
[336504028,1724885115999,-500.0,0.00038356,120]
[336504029,1724885116045,-784.11,0.00038356,120]
[336504030,1724885116089,-2768.98,0.00038356,120]
[336504031,1724885116134,-2688.39,0.00038356,120]
[336504032,1724885116176,-500.0,0.00038356,120]
[336504033,1724885116218,-2025.24,0.00038356,120]
[336504034,1724885116260,-500.0,0.00038356,120]
[336504035,1724885116301,-592.64,0.00038356,120]
[336504036,1724885116343,-500.0,0.00038356,120]
[336504037,1724885116394,-2704.08,0.00038356,120]
[336504038,1724885116436,-500.0,0.00038356,120]
[336504039,1724885116477,-500.0,0.00038356,120]
[336504040,1724885116519,-1527.67,0.00038356,120]
[336504041,1724885116563,-852.5,0.00038356,120]
[336504042,1724885116609,-500.0,0.00038356,120]
[336504043,1724885116653,-3763.91,0.00038356,120]
[336504044,1724885116696,-681.13,0.00038356,120]
[336504045,1724885116751,-500.0,0.00038356,120]
[336504046,1724885116793,-500.0,0.00038356,120]
[336504047,1724885116845,-879.46,0.00038356,120]
[336504048,1724885116896,-5219.13,0.00038356,120]
[336504049,1724885116950,-699.45,0.00038356,120]
[336504050,1724885116998,-579.87,0.00038356,120]
[336504051,1724885117047,-500.0,0.00038356,120]
[336504052,1724885117092,-509.97972123,0.00038356,120]
[336504053,1724885117137,-500.0,0.00038356,120]
[336504054,1724885117182,-1639.18,0.00038356,120]
[336504055,1724885117233,-500.0,0.00038356,120]
[336504056,1724885117276,-500.0,0.00038356,120]
[336504057,1724885117321,-500.0,0.00038356,120]
[336504058,1724885117362,-500.0,0.00038356,120]
[336504059,1724885117406,-500.0,0.00038356,120]
[336504060,1724885117448,-598.75,0.00038356,120]
[336504061,1724885117489,-1528.12,0.00038356,120]
[336504062,1724885117532,-500.0,0.00038356,120]
[336504063,1724885117573,-500.0,0.00038356,120]
[336504064,1724885117614,-500.0,0.00038356,120]
[336504065,1724885117657,-500.0,0.00038356,120]
[336504066,1724885117698,-2675.57,0.00038356,120]
[336504067,1724885117741,-500.0,0.00038356,120]
[336504068,1724885117783,-500.0,0.00038356,120]
[336504069,1724885117826,-500.0,0.00038356,120]
[336504070,1724885117870,-500.0,0.00038356,120]
[336504071,1724885117915,-500.0,0.00038356,120]
[336504072,1724885117958,-500.0,0.00038356,120]
[336504073,1724885118001,-500.0,0.00038356,120]
[336504074,1724885118043,-500.0,0.00038356,120]
[336504075,1724885118086,-555.45,0.00038356,120]
[336504076,1724885118129,-500.0,0.00038356,120]
[336504077,1724885118172,-500.0,0.00038356,120]
[336504078,1724885118214,-500.0,0.00038356,120]
[336504079,1724885118255,-500.0,0.00038356,120]
[336504080,1724885118296,-500.0,0.00038356,120]
[336504081,1724885118338,-500.0,0.00038356,120]
[336504082,1724885118381,-500.0,0.00038356,120]
[336504083,1724885118422,-500.0,0.00038356,120]
[336504084,1724885118465,-500.0,0.00038356,120]
[336504085,1724885118507,-500.0,0.00038356,120]
[336504086,1724885118550,-1337.75,0.00038356,120]
[336504087,1724885118600,-500.0,0.00038356,120]
[336504088,1724885118642,-500.0,0.00038356,120]
[336504089,1724885118686,-500.0,0.00038356,120]
[336504090,1724885118727,-500.0,0.00038356,120]
[336504091,1724885118770,-500.0,0.00038356,120]
[336504092,1724885118815,-1208.83,0.00038356,120]
[336504093,1724885118858,-500.0,0.00038356,120]
[336504094,1724885118901,-500.0,0.00038356,120]
[336504095,1724885118955,-500.0,0.00038356,120]
[336504096,1724885119000,-500.0,0.00038356,120]
[336504097,1724885119048,-196.95172,0.00038356,120]
[336504098,1724885119093,-503.66,0.00038356,120]
[336504099,1724885119138,-500.0,0.00038356,120]
[336504100,1724885119184,-500.0,0.00038356,120]
[336504101,1724885119229,-500.0,0.00038356,120]
[336504102,1724885119273,-500.0,0.00038356,120]
[336504103,1724885119319,-500.0,0.00038356,120]
[336504104,1724885119362,-1049.13,0.00038356,120]
[336504105,1724885119406,-500.0,0.00038356,120]
[336504106,1724885119451,-1767.75,0.00038356,120]
[336504107,1724885119494,-500.0,0.00038356,120]
[336504108,1724885119547,-500.0,0.00038356,120]
[336504109,1724885119593,-2859.72,0.00038356,120]
[336504110,1724885119637,-987.6,0.00038356,120]
[336504111,1724885119683,-500.0,0.00038356,120]
[336504112,1724885119727,-1188.95,0.00038356,120]
[336504113,1724885119771,-500.0,0.00038356,120]
[336504114,1724885119817,-500.0,0.00038356,120]
[336504115,1724885119860,-500.0,0.00038356,120]
[336504116,1724885119905,-1237.97,0.00038356,120]
[336504117,1724885119950,-500.0,0.00038356,120]
[336504118,1724885119995,-2836.35,0.00038356,120]
[336504119,1724885120047,-500.0,0.00038356,120]
[336504120,1724885120092,-500.0,0.00038356,120]
[336504121,1724885120136,-2754.45,0.00038356,120]
[336504122,1724885120182,-500.0,0.00038356,120]
[336504123,1724885120227,-737.83,0.00038356,120]
[336504124,1724885120269,-500.0,0.00038356,120]
[336504125,1724885120311,-500.0,0.00038356,120]
[336504126,1724885120353,-500.0,0.00038356,120]
[336504127,1724885120395,-500.0,0.00038356,120]
[336504128,1724885120436,-500.0,0.00038356,120]
[336504129,1724885120488,-2434.07,0.00038356,120]
[336504130,1724885120540,-500.0,0.00038356,120]
[336504131,1724885120582,-500.0,0.00038356,120]
[336504132,1724885120626,-500.26259936,0.00038356,120]
[336504133,1724885120673,-605.2,0.00038356,120]
[336504134,1724885120716,-3102.95,0.00038356,120]
[336504135,1724885120763,-2165.19,0.0003863,120]
[336504136,1724885120808,-500.0,0.0003863,120]
[336504137,1724885120854,-500.0,0.0003863,120]
[336504138,1724885120900,-500.0,0.0003863,120]
[336504139,1724885120946,-500.0,0.0003863,120]
[336504140,1724885120990,-500.0,0.0003863,120]
[336504141,1724885121039,-582.22,0.0003863,120]
[336504142,1724885121085,-956.93,0.0003863,120]
[336504143,1724885121130,-500.0,0.0003863,120]
[336504144,1724885121177,-1014.77,0.0003863,120]
[336504145,1724885121223,-487.58,0.0003863,120]
[336504146,1724885121268,-440.03,0.0003863,120]
[336504147,1724885121313,-500.0,0.0003863,120]
[336504148,1724885121357,-1088.43,0.0003863,120]
[336504149,1724885121403,-1629.12,0.0003863,120]
[336504150,1724885121446,-500.0,0.0003863,120]
[336504151,1724885121490,-511.89,0.0003863,120]
[336504152,1724885121537,-500.0,0.0003863,120]
[336504153,1724885121581,-500.0,0.0003863,120]
[336504154,1724885121626,-4067.41,0.0003863,120]
[336504155,1724885121673,-500.0,0.0003863,120]
[336504156,1724885121716,-1468.53,0.0003863,120]
[336504157,1724885121760,-500.0,0.0003863,120]
[336504158,1724885121805,-784.11,0.0003863,120]
[336504159,1724885121849,-2768.98,0.0003863,120]
[336504160,1724885121894,-500.0,0.0003863,120]
[336504161,1724885121948,-2025.24,0.0003863,120]
[336504162,1724885121993,-2688.39,0.0003863,120]
[336504163,1724885122040,-541.49,0.0003863,120]
[336504164,1724885122089,-592.64,0.0003863,120]
[336504165,1724885122140,-500.0,0.0003863,120]
[336504166,1724885122184,-2704.08,0.0003863,120]
[336504167,1724885122228,-500.0,0.0003863,120]
[336504168,1724885122273,-500.0,0.0003863,120]
[336504169,1724885122317,-1527.67,0.0003863,120]
[336504170,1724885122360,-852.5,0.0003863,120]
[336504171,1724885122404,-500.0,0.0003863,120]
[336504172,1724885122449,-3763.91,0.0003863,120]
[336504173,1724885122492,-681.13,0.0003863,120]
[336504174,1724885122537,-500.0,0.0003863,120]
[336504175,1724885122582,-879.46,0.0003863,120]
[336504176,1724885122626,-5219.13,0.0003863,120]
[336504177,1724885122670,-699.45,0.0003863,120]
[336504178,1724885122715,-631.52,0.0003863,120]
[336504179,1724885122759,-1639.18,0.0003863,120]
[336504180,1724885122804,-368.0300924,0.0003863,120]
[336504181,1724885122848,-156.02571026,0.0003863,120]
[336504182,1724885122894,-500.0,0.0003863,120]
[336504183,1724885122944,-1528.12,0.0003863,120]
[336504184,1724885122990,-500.0,0.0003863,120]
[336504185,1724885123036,-304.49,0.0003863,120]
[336504186,1724885123082,-2675.57,0.0003863,120]
[336504187,1724885123130,-500.0,0.0003863,120]
[336504188,1724885123177,-500.0,0.0003863,120]
[336504189,1724885123223,-500.0,0.0003863,120]
[336504190,1724885123268,-500.0,0.0003863,120]
[336504191,1724885123314,-500.0,0.0003863,120]
[336504192,1724885123363,-500.0,0.0003863,120]
[336504193,1724885123410,-500.0,0.0003863,120]
[336504194,1724885123454,-500.0,0.0003863,120]
[336504195,1724885123499,-500.0,0.0003863,120]
[336504196,1724885123545,-500.0,0.0003863,120]
[336504197,1724885123589,-500.0,0.0003863,120]
[336504198,1724885123635,-500.0,0.0003863,120]
[336504199,1724885123694,-500.0,0.0003863,120]
[336504200,1724885123740,-1337.75,0.0003863,120]
[336504201,1724885123787,-500.0,0.0003863,120]
[336504202,1724885123832,-500.0,0.0003863,120]
[336504203,1724885123878,-500.0,0.0003863,120]
[336504204,1724885123929,-500.0,0.0003863,120]
[336504205,1724885123976,-1208.83,0.0003863,120]
[336504206,1724885124024,-500.0,0.0003863,120]
[336504207,1724885124352,-500.0,0.0003863,120]
[336504208,1724885124406,-500.0,0.0003863,120]
[336504209,1724885124460,-500.0,0.0003863,120]
[336504210,1724885124512,-500.0,0.0003863,120]
[336504211,1724885124556,-248.82,0.0003863,120]
[336504212,1724885124601,-501.47218843,0.0003863,120]
[336504213,1724885124645,-500.0,0.0003863,120]
[336504214,1724885124689,-231.3,0.0003863,120]
[336504215,1724885124734,-1049.13,0.0003863,120]
[336504216,1724885124778,-500.0,0.0003863,120]
[336504217,1724885124823,-1767.75,0.0003863,120]
[336504218,1724885124868,-500.0,0.0003863,120]
[336504219,1724885124917,-2859.72,0.0003863,120]
[336504220,1724885124962,-987.6,0.0003863,120]
[336504221,1724885125009,-500.0,0.0003863,120]
[336504222,1724885125058,-1188.95,0.0003863,120]
[336504223,1724885125102,-500.0,0.0003863,120]
[336504224,1724885125149,-500.0,0.0003863,120]
[336504225,1724885125192,-1237.97,0.0003863,120]
[336504226,1724885125234,-500.0,0.0003863,120]
[336504227,1724885125277,-2836.35,0.0003863,120]
[336504228,1724885125320,-2754.45,0.0003863,120]
[336504229,1724885125362,-737.83,0.0003863,120]
[336504230,1724885125405,-500.0,0.0003863,120]
[336504231,1724885125447,-500.0,0.0003863,120]
[336504232,1724885125490,-500.0,0.0003863,120]
[336504233,1724885125531,-500.0,0.0003863,120]
[336504234,1724885125574,-2434.07,0.0003863,120]
[336504235,1724885125619,-216.71930024,0.0003863,120]
[336504236,1724885125673,-500.0,0.0003863,120]
[336504237,1724885125715,-605.2,0.0003863,120]
[336504238,1724885125760,-3102.95,0.0003863,120]
[336504239,1724885125806,-2165.19,0.00038904,120]
[336504240,1724885125849,-500.0,0.00038904,120]
[336504241,1724885125893,-293.02,0.00038904,120]
[336504242,1724885125942,-644.96,0.00038904,120]
[336504243,1724885125989,-154.68539,0.00038904,120]
[336504244,1724885126035,-309.44,0.00038904,120]
[336504245,1724885126083,-500.0,0.00038904,120]
[336504246,1724885126128,-582.22,0.00038904,120]
[336504247,1724885126175,-956.93,0.00038904,120]
[336504248,1724885126219,-500.0,0.00038904,120]
[336504249,1724885126261,-1014.77,0.00038904,120]
[336504250,1724885126303,-500.0,0.00038904,120]
[336504251,1724885126347,-1088.43,0.00038904,120]
[336504252,1724885126398,-1629.12,0.00038904,120]
[336504253,1724885126444,-500.0,0.00038904,120]
[336504254,1724885126487,-511.89,0.00038904,120]
[336504255,1724885126529,-500.0,0.00038904,120]
[336504256,1724885126572,-500.0,0.00038904,120]
[336504257,1724885126615,-4067.41,0.00038904,120]
[336504258,1724885126658,-500.0,0.00038904,120]
[336504259,1724885126703,-1468.53,0.00038904,120]
[336504260,1724885126746,-295.45,0.00038904,120]
[336504261,1724885126789,-784.11,0.00038904,120]
[336504262,1724885126833,-2768.98,0.00038904,120]
[336504263,1724885126877,-499.11,0.00038904,120]
[336504264,1724885126930,-2025.24,0.00038904,120]
[336504265,1724885126980,-2688.39,0.00038904,120]
[336504266,1724885127024,-592.64,0.00038904,120]
[336504267,1724885127069,-500.0,0.00038904,120]
[336504268,1724885127113,-2704.08,0.00038904,120]
[336504269,1724885127157,-500.0,0.00038904,120]
[336504270,1724885127201,-500.0,0.00038904,120]
[336504271,1724885127244,-1527.67,0.00038904,120]
[336504272,1724885127288,-852.5,0.00038904,120]
[336504273,1724885127333,-500.0,0.00038904,120]
[336504274,1724885127375,-3763.91,0.00038904,120]
[336504275,1724885127419,-681.13,0.00038904,120]
[336504276,1724885127463,-500.0,0.00038904,120]
[336504277,1724885127594,-879.46,0.00038904,120]
[336504278,1724885127640,-5219.13,0.00038904,120]
[336504279,1724885127684,-699.45,0.00038904,120]
[336504280,1724885127727,-1639.18,0.00038904,120]
[336504281,1724885127768,-500.0,0.00038904,120]
[336504282,1724885127813,-1528.12,0.00038904,120]
[336504283,1724885127856,-500.0,0.00038904,120]
[336504284,1724885127900,-2675.57,0.00038904,120]
[336504285,1724885127947,-231.21,0.00038904,120]
[336504286,1724885127991,-500.0,0.00038904,120]
[336504287,1724885128034,-500.0,0.00038904,120]
[336504288,1724885128076,-500.0,0.00038904,120]
[336504289,1724885128118,-294.98,0.00038904,120]
[336504290,1724885128161,-500.0,0.00038904,120]
[336504291,1724885128206,-500.0,0.00038904,120]
[336504292,1724885128247,-500.0,0.00038904,120]
[336504293,1724885128289,-500.0,0.00038904,120]
[336504294,1724885128331,-479.05,0.00038904,120]
[336504295,1724885128371,-500.0,0.00038904,120]
[336504296,1724885128415,-500.0,0.00038904,120]
[336504297,1724885128454,-1337.75,0.00038904,120]
[336504298,1724885128496,-500.0,0.00038904,120]
[336504299,1724885128536,-500.0,0.00038904,120]
[336504300,1724885128576,-328.63,0.00038904,120]
[336504301,1724885128620,-500.0,0.00038904,120]
[336504302,1724885128663,-1208.83,0.00038904,120]
[336504303,1724885128708,-500.0,0.00038904,120]
[336504304,1724885128748,-500.0,0.00038904,120]
[336504305,1724885128788,-500.0,0.00038904,120]
[336504306,1724885128829,-500.0,0.00038904,120]
[336504307,1724885128869,-500.0,0.00038904,120]
[336504308,1724885128915,-500.0,0.00038904,120]
[336504309,1724885128961,-1049.13,0.00038904,120]
[336504310,1724885129003,-500.0,0.00038904,120]
[336504311,1724885129047,-1767.75,0.00038904,120]
[336504312,1724885129090,-500.0,0.00038904,120]
[336504313,1724885129134,-2859.72,0.00038904,120]
[336504314,1724885129178,-987.6,0.00038904,120]
[336504315,1724885129222,-500.0,0.00038904,120]
[336504316,1724885129265,-1188.95,0.00038904,120]
[336504317,1724885129307,-188.73,0.00038904,120]
[336504318,1724885129350,-500.0,0.00038904,120]
[336504319,1724885129392,-1237.97,0.00038904,120]
[336504320,1724885129435,-294.35,0.00038904,120]
[336504321,1724885129477,-2836.35,0.00038904,120]
[336504322,1724885129521,-2754.45,0.00038904,120]
[336504323,1724885129566,-737.83,0.00038904,120]
[336504324,1724885129610,-500.0,0.00038904,120]
[336504325,1724885129653,-500.0,0.00038904,120]
[336504326,1724885129705,-500.0,0.00038904,120]
[336504327,1724885129749,-500.0,0.00038904,120]
[336504328,1724885129793,-2434.07,0.00038904,120]
[336504329,1724885129836,-500.0,0.00038904,120]
[336504330,1724885129880,-605.2,0.00038904,120]
[336504331,1724885129935,-3102.95,0.00038904,120]
[336504332,1724885129986,-354.09100392,0.00039178,120]
[336504333,1724885130032,-239.8607179,0.00039178,120]
[336504334,1724885130079,-500.0,0.00039178,120]
[336504335,1724885130123,-1843.37,0.00039178,120]
[336504336,1724885130172,-523.56,0.00039178,120]
[336504337,1724885130216,-500.0,0.00039178,120]
[336504338,1724885130260,-314.37966271,0.00039178,120]
[336504339,1724885130303,-500.0,0.00039178,120]
[336504340,1724885130345,-500.0,0.00039178,120]
[336504341,1724885130388,-1860.48,0.00039178,120]
[336504342,1724885130429,-500.0,0.00039178,120]
[336504343,1724885130469,-500.0,0.00039178,120]
[336504344,1724885130512,-1211.62,0.00039178,120]
[336504345,1724885130555,-565.93,0.00039178,120]
[336504346,1724885130599,-3392.09,0.00039178,120]
[336504347,1724885130642,-2248.15,0.00039178,120]
[336504348,1724885130684,-2080.06,0.00039178,120]
[336504349,1724885130727,-150.0,0.00039178,120]
[336504350,1724885130770,-200.77977286,0.00039178,120]
[336504351,1724885130815,-500.0,0.00039178,120]
[336504352,1724885130857,-1270.94,0.00039178,120]
[336504353,1724885130898,-2921.42,0.00039178,120]
[336504354,1724885130943,-500.0,0.00039178,120]
[336504355,1724885130987,-1000.55,0.00039178,120]
[336504356,1724885131033,-2187.2,0.00039178,120]
[336504357,1724885131078,-1801.84,0.00039178,120]
[336504358,1724885131121,-657.58,0.00039178,120]
[336504359,1724885131166,-500.0,0.00039178,120]
[336504360,1724885131208,-1454.75,0.00039178,120]
[336504361,1724885131251,-3322.66,0.00039178,120]
[336504362,1724885131292,-500.0,0.00039178,120]
[336504363,1724885131344,-186.39470967,0.00039178,120]
[336504364,1724885131396,-500.0,0.00039178,120]
[336504365,1724885131440,-500.0,0.00039178,120]
[336504366,1724885131480,-500.0,0.00039178,120]
[336504367,1724885131522,-500.0,0.00039178,120]
[336504368,1724885131562,-500.0,0.00039178,120]
[336504369,1724885131603,-500.0,0.00039178,120]
[336504370,1724885131653,-618.26,0.00039178,120]
[336504371,1724885131703,-668.42,0.00039178,120]
[336504372,1724885131744,-589.65,0.00039178,120]
[336504373,1724885131789,-500.0,0.00039178,120]
[336504374,1724885131832,-593.94,0.00039178,120]
[336504375,1724885131875,-883.0,0.00039178,120]
[336504376,1724885131920,-500.0,0.00039178,120]
[336504377,1724885131962,-1729.26,0.00039178,120]
[336504378,1724885132004,-1436.8,0.00039178,120]
[336504379,1724885132046,-1369.56,0.00039178,120]
[336504380,1724885132088,-500.0,0.00039178,120]
[336504381,1724885132132,-1724.07,0.00039178,120]
[336504382,1724885132295,-3045.35,0.00039178,120]
[336504383,1724885132343,-500.0,0.00039178,120]
[336504384,1724885132388,-1773.01,0.00039178,120]
[336504385,1724885132429,-500.0,0.00039178,120]
[336504386,1724885132474,-721.43,0.00039178,120]
[336504387,1724885132516,-2134.71,0.00039178,120]
[336504388,1724885132560,-500.0,0.00039178,120]
[336504389,1724885132602,-895.91,0.00039178,120]
[336504390,1724885132645,-500.0,0.00039178,120]
[336504391,1724885132688,-659.85,0.00039178,120]
[336504392,1724885132730,-657.62,0.00039178,120]
[336504393,1724885132773,-1447.73,0.00039178,120]
[336504394,1724885132817,-2609.9,0.00039178,120]
[336504395,1724885132862,-1198.48,0.00039178,120]
[336504396,1724885132906,-979.34,0.00039178,120]
[336504397,1724885132950,-1267.24,0.00039178,120]